fUSD/lending_fUSD_20260324
["ID","MTS","AMOUNT","RATE_DAILY","PERIOD"]
[408839493,1774338721935,-500.0,0.00042191,120]
[408839494,1774338721944,-500.0,0.00042191,120]
[408839495,1774338721953,-500.0,0.00042191,120]
[408839496,1774338721963,-500.0,0.00042191,120]
[408839497,1774338721973,-500.0,0.00042191,120]
[408839498,1774338721982,-500.0,0.00042191,120]
[408839499,1774338721992,-1361.64,0.00042191,120]
[408839500,1774338722001,-500.0,0.00042191,120]
[408839501,1774338722011,-1113.98,0.00042191,120]
[408839502,1774338722020,-500.0,0.00042191,120]
[408839503,1774338722030,-500.0,0.00042191,120]
[408839504,1774338722039,-500.0,0.00042191,120]
[408839505,1774338722049,-500.0,0.00042191,120]
[408839506,1774338722059,-500.0,0.00042191,120]
[408839507,1774338722068,-500.0,0.00042191,120]
[408839508,1774338722078,-203.47446221,0.00042191,120]
[408839509,1774338722091,-500.0,0.00042191,120]
[408839510,1774338722100,-804.84,0.00042191,120]
[408839511,1774338722109,-429.126343,0.00042191,120]
[408839512,1774338722119,-587.8,0.00042191,120]
[408839513,1774338722130,-895.35,0.00042191,120]
[408839514,1774338722140,-500.0,0.00042191,120]
[408839515,1774338722150,-500.0,0.00042191,15]
[408839516,1774338722159,-500.0,0.00042191,120]
[408839517,1774338722169,-640.6,0.00042191,120]
[408839518,1774338722179,-358.20330856,0.00042191,120]
[408839519,1774338722188,-500.0,0.00042191,120]
[408839520,1774338722198,-500.0,0.00042191,120]
[408839521,1774338722208,-500.0,0.00042191,120]
[408839522,1774338722217,-500.0,0.00042191,120]
[408839523,1774338722227,-500.0,0.00042191,120]
[408839524,1774338722236,-178.42918216,0.00042191,120]
[408839525,1774338722246,-500.0,0.00042191,2]
[408839526,1774338722256,-1353.62,0.00042191,120]
[408839527,1774338722267,-500.0,0.00042191,120]
[408839528,1774338722277,-500.0,0.00042191,120]
[408839529,1774338722286,-663.05,0.00042191,120]
[408839530,1774338722296,-500.0,0.00042191,120]
[408839531,1774338722305,-500.0,0.00042191,120]
[408839532,1774338722315,-2022.99,0.00042191,120]
[408839533,1774338722324,-500.0,0.00042191,120]
[408839534,1774338722334,-500.0,0.00042191,120]
[408839535,1774338722344,-500.0,0.00042191,120]
[408839536,1774338722354,-993.61,0.00042191,120]
[408839537,1774338722363,-500.0,0.00042191,120]
[408839538,1774338722378,-500.0,0.00042191,120]
[408839539,1774338722387,-500.0,0.00042191,120]
[408839540,1774338722397,-500.0,0.00042191,120]
[408839541,1774338722407,-317.1503939,0.00042191,120]
[408839542,1774338722418,-526.3,0.00042191,120]
[408839543,1774338722428,-500.0,0.00042191,120]
[408839544,1774338722438,-500.0,0.00042191,120]
[408839545,1774338722449,-803.74,0.00042191,120]
[408839546,1774338722459,-500.0,0.00042191,120]
[408839547,1774338722468,-500.0,0.00042191,120]
[408839548,1774338722478,-500.0,0.00042191,120]
[408839549,1774338722488,-593.39,0.00042191,120]
[408839550,1774338722498,-773.48,0.00042191,120]
[408839551,1774338722507,-500.0,0.00042191,120]
[408839552,1774338722516,-500.0,0.00042191,120]
[408839553,1774338722527,-500.0,0.00042191,120]
[408839554,1774338722537,-500.0,0.00042191,120]
[408839555,1774338722546,-500.0,0.00042191,120]
[408839556,1774338722556,-500.0,0.00042191,120]
[408839557,1774338722565,-500.0,0.00042191,120]
[408839558,1774338722575,-1169.17,0.00042191,120]
[408839559,1774338722585,-500.0,0.00042191,120]
[408839560,1774338722594,-500.0,0.00042191,120]
[408839561,1774338722604,-500.0,0.00042191,120]
[408839562,1774338722613,-500.0,0.00042191,120]
[408839563,1774338722623,-500.0,0.00042191,120]
[408839564,1774338722633,-500.0,0.00042191,120]
[408839565,1774338722643,-603.66188033,0.00042191,120]
[408839566,1774338722653,-1339.98,0.00042191,120]
[408839567,1774338722662,-500.0,0.00042191,120]
[408839568,1774338722672,-500.0,0.00042191,120]
[408839569,1774338722681,-500.0,0.00042191,120]
[408839570,1774338722691,-599.34,0.00042191,120]
[408839571,1774338722700,-500.0,0.00042191,120]
[408839572,1774338722710,-551.15,0.00042191,120]
[408839573,1774338722721,-500.0,0.00042191,120]
[408839574,1774338722731,-1698.32,0.00042191,120]
[408839575,1774338722740,-1450.66,0.00042191,120]
[408839576,1774338722750,-500.0,0.00042191,120]
[408839577,1774338722759,-500.0,0.00042191,120]
[408839578,1774338722768,-500.0,0.00042191,120]
[408839579,1774338722778,-818.03,0.00042191,120]
[408839580,1774338722787,-234.3142,0.00042191,120]
[408839581,1774338722798,-620.94,0.00042191,2]
[408839582,1774338722809,-500.0,0.00042191,120]
[408839583,1774338722820,-500.0,0.00042191,120]
[408839584,1774338722831,-500.0,0.00042191,120]
[408839585,1774338722841,-500.0,0.00042191,120]
[408839586,1774338722851,-500.0,0.00042191,120]
[408839587,1774338722862,-500.0,0.00042191,120]
[408839588,1774338722871,-500.0,0.00042191,120]
[408839589,1774338722881,-500.0,0.00042191,120]
[408839590,1774338722891,-500.0,0.00042191,120]
[408839591,1774338722900,-500.0,0.00042191,120]
[408839592,1774338722909,-500.0,0.00042191,120]
[408839593,1774338722919,-1515.34,0.00042191,120]
[408839594,1774338722928,-500.0,0.00042191,120]
[408839595,1774338722938,-500.0,0.00042191,120]
[408839596,1774338722947,-500.0,0.00042191,120]
[408839597,1774338722957,-1009.33,0.00042191,120]
[408839598,1774338722966,-500.0,0.00042191,120]
[408839599,1774338722977,-4192.59,0.00042191,120]
[408839600,1774338722987,-500.0,0.00042191,120]
[408839601,1774338722997,-500.0,0.00042191,120]
[408839602,1774338723007,-500.0,0.00042191,120]
[408839603,1774338723018,-2475.9,0.00042191,120]
[408839604,1774338723028,-500.0,0.00042191,120]
[408839605,1774338723039,-500.0,0.00042191,120]
[408839606,1774338723048,-500.0,0.00042191,120]
[408839607,1774338723058,-2035.37,0.00042191,120]
[408839608,1774338723067,-500.0,0.00042191,120]
[408839609,1774338723077,-500.0,0.00042191,120]
[408839610,1774338723086,-500.0,0.00042191,120]
[408839611,1774338723096,-500.0,0.00042191,120]
[408839612,1774338723105,-857.75,0.00042191,120]
[408839613,1774338723115,-944.17,0.00042191,120]
[408839614,1774338723125,-500.0,0.00042191,120]
[408839615,1774338723136,-500.0,0.00042191,120]
[408839616,1774338723147,-500.0,0.00042191,120]
[408839617,1774338723156,-1317.86,0.00042191,30]
[408839618,1774338723165,-500.0,0.00042191,120]
[408839619,1774338723175,-500.0,0.00042191,120]
[408839620,1774338723184,-826.35,0.00042191,120]
[408839621,1774338723193,-588.23,0.00042191,120]
[408839622,1774338723206,-1144.87,0.00042191,120]
[408839623,1774338723216,-500.0,0.00042191,120]
[408839624,1774338723226,-500.0,0.00042191,120]
[408839625,1774338723237,-638.29929241,0.00042191,120]
[408839626,1774338723248,-640.93112406,0.00042191,120]
[408839627,1774338723257,-500.0,0.00042191,120]
[408839628,1774338723268,-500.0,0.00042191,120]
[408839629,1774338723277,-895.15,0.00042191,120]
[408839630,1774338723288,-800.0,0.00042191,120]
[408839631,1774338723298,-500.0,0.00042191,120]
[408839632,1774338723307,-1197.62,0.00042191,120]
[408839633,1774338723319,-500.0,0.00042191,120]
[408839634,1774338723328,-1494.6,0.00042191,120]
[408839635,1774338723339,-1086.62,0.00042191,120]
[408839636,1774338723352,-500.0,0.00042191,120]
[408839637,1774338723361,-150.74388253,0.00042191,120]
[408839638,1774338723374,-500.0,0.00042191,120]
[408839639,1774338723385,-500.0,0.00042191,120]
[408839640,1774338723395,-500.0,0.00042191,120]
[408839641,1774338723404,-946.8,0.00042191,120]
[408839642,1774338723415,-500.0,0.00042191,120]
[408839643,1774338723426,-713.74,0.00042191,120]
[408839644,1774338723436,-500.0,0.00042191,120]
[408839645,1774338723446,-636.36240852,0.00042191,120]
[408839646,1774338723456,-6072.1,0.00042191,120]
[408839647,1774338723465,-826.7,0.00042191,120]
[408839648,1774338723474,-1989.66,0.00042191,30]
[408839649,1774338723483,-552.86,0.00042191,120]
[408839650,1774338723492,-500.0,0.00042191,120]
[408839651,1774338723501,-926.79,0.00042191,120]
[408839652,1774338723511,-500.0,0.00042191,120]
[408839653,1774338723520,-500.0,0.00042191,120]
[408839654,1774338723530,-500.0,0.00042191,120]
[408839655,1774338723884,-2329.55,0.00042191,120]
[408839656,1774338723940,-500.0,0.00042191,120]
[408839657,1774338723949,-500.0,0.00042191,120]
[408839658,1774338723958,-500.0,0.00042191,120]
[408839659,1774338723968,-847.68,0.00042191,120]
[408839660,1774338723977,-1646.81,0.00042191,120]
[408839661,1774338723986,-1090.68,0.00042191,120]
[408839662,1774338723996,-500.0,0.00042191,120]
[408839663,1774338724005,-1885.93,0.00042191,120]
[408839664,1774338724014,-741.6,0.00042191,120]
[408839665,1774338724024,-180.0521616,0.00042191,120]
[408839666,1774338724034,-500.0,0.00042191,120]
[408839667,1774338724044,-727.16,0.00042191,120]
[408839668,1774338724054,-500.0,0.00042191,120]
[408839669,1774338724063,-712.06,0.00042191,120]
[408839670,1774338724073,-5833.33,0.00042191,120]
[408839671,1774338724084,-188.91500978,0.00042191,120]
[408839672,1774338724095,-485.59353701,0.00042191,120]
[408839673,1774338724105,-2107.35,0.00042191,120]
[408839674,1774338724115,-500.0,0.00042191,120]
[408839675,1774338724125,-500.0,0.00042191,120]
[408839676,1774338724137,-500.0,0.00042191,120]
[408839677,1774338724146,-500.0,0.00042191,120]
[408839678,1774338724156,-500.0,0.00042191,120]
[408839679,1774338724165,-617.58,0.00042191,120]
[408839680,1774338724175,-500.0,0.00042191,120]
[408839681,1774338724184,-500.0,0.00042191,120]
[408839682,1774338724194,-2133.23,0.00042191,120]
[408839683,1774338724205,-500.0,0.00042191,120]
[408839684,1774338724214,-1039.39,0.00042191,120]
[408839685,1774338724223,-2468.56,0.00042191,120]
[408839686,1774338724233,-1366.12,0.00042191,120]
[408839687,1774338724243,-500.0,0.00042191,120]
[408839688,1774338724252,-500.0,0.00042191,120]
[408839689,1774338724262,-1016.32,0.00042191,120]
[408839690,1774338724271,-500.0,0.00042191,120]
[408839691,1774338724281,-784.59,0.00042191,120]
[408839692,1774338724289,-1478.69,0.00042191,120]
[408839693,1774338724301,-1107.99,0.00042191,120]
[408839694,1774338724311,-500.0,0.00042191,120]
[408839695,1774338724322,-1259.9,0.00042191,120]
[408839696,1774338724332,-1114.05,0.00042191,120]
[408839697,1774338724343,-1519.93,0.00042191,120]
[408839698,1774338724352,-646.06,0.00042191,120]
[408839699,1774338724363,-500.0,0.00042191,120]
[408839700,1774338724378,-1266.58,0.00042191,120]
[408839701,1774338724387,-579.57204791,0.00042191,120]
[408839702,1774338724396,-500.0,0.00042191,120]
[408839703,1774338724407,-500.0,0.00042191,120]
[408839704,1774338724418,-500.0,0.00042191,120]
[408839705,1774338724427,-1009.25,0.00042191,120]
[408839706,1774338724437,-500.0,0.00042191,120]
[408839707,1774338724447,-707.37,0.00042191,120]
[408839708,1774338724456,-1156.03,0.00042191,14]
[408839709,1774338724468,-500.0,0.00042191,120]
[408839710,1774338724479,-999.55,0.00042191,120]
[408839711,1774338724489,-970.63,0.00042191,120]
[408839712,1774338724500,-500.0,0.00042191,120]
[408839713,1774338724509,-650.62,0.00042191,30]
[408839714,1774338724520,-725.53,0.00042191,120]
[408839715,1774338724531,-500.0,0.00042191,120]
[408839716,1774338724541,-1014.92,0.00042191,120]
[408839717,1774338724550,-500.0,0.00042191,120]
[408839718,1774338724560,-2689.33,0.00042191,120]
[408839719,1774338724570,-500.0,0.00042191,120]
[408839720,1774338724579,-500.0,0.00042191,120]
[408839721,1774338724588,-500.0,0.00042191,120]
[408839722,1774338724598,-500.0,0.00042191,120]
[408839723,1774338724607,-1544.85,0.00042191,120]
[408839724,1774338724617,-500.0,0.00042191,120]
[408839725,1774338724627,-500.0,0.00042191,120]
[408839726,1774338724636,-387.32168266,0.00042191,120]
[408839727,1774338724646,-1269.14,0.00042191,120]
[408839728,1774338724656,-500.0,0.00042191,120]
[408839729,1774338724665,-500.0,0.00042191,120]
[408839730,1774338724675,-665.15,0.00042191,120]
[408839731,1774338724685,-500.0,0.00042191,120]
[408839732,1774338724695,-680.42,0.00042191,120]
[408839733,1774338724704,-500.0,0.00042191,120]
[408839734,1774338724715,-500.0,0.00042191,120]
[408839735,1774338724724,-500.0,0.00042191,120]
[408839736,1774338724733,-303.43002512,0.00042191,120]
[408839737,1774338724742,-500.0,0.00042191,120]
[408839738,1774338724752,-500.0,0.00042191,120]
[408839739,1774338724761,-500.0,0.00042191,120]
[408839740,1774338724770,-1769.26,0.00042191,120]
[408839741,1774338724779,-500.0,0.00042191,120]
[408839742,1774338724789,-512.42,0.00042191,120]
[408839743,1774338724798,-500.0,0.00042191,120]
[408839744,1774338724807,-500.0,0.00042191,120]
[408839745,1774338724816,-500.0,0.00042191,120]
[408839746,1774338724826,-500.0,0.00042191,120]
[408839747,1774338724835,-500.0,0.00042191,120]
[408839748,1774338724844,-500.0,0.00042191,120]
[408839749,1774338724854,-500.0,0.00042191,120]
[408839750,1774338724864,-225.29349257,0.00042191,120]
[408839751,1774338724873,-500.0,0.00042191,120]
[408839752,1774338724884,-500.0,0.00042191,120]
[408839753,1774338724894,-1705.77,0.00042191,120]
[408839754,1774338724903,-500.0,0.00042191,120]
[408839755,1774338724912,-500.0,0.00042191,120]
[408839756,1774338724921,-978.43,0.00042191,120]
[408839757,1774338724931,-500.0,0.00042191,120]
[408839758,1774338724940,-500.0,0.00042191,120]
[408839759,1774338724950,-500.0,0.00042191,120]
[408839760,1774338724959,-261.52,0.00042191,120]
[408839761,1774338724968,-500.0,0.00042191,120]
[408839762,1774338724978,-500.0,0.00042191,120]
[408839763,1774338724987,-500.0,0.00042191,120]
[408839764,1774338724996,-500.0,0.00042191,120]
[408839765,1774338725006,-500.0,0.00042191,120]
[408839766,1774338725016,-500.0,0.00042191,120]
[408839767,1774338725025,-1215.44,0.00042191,120]
[408839768,1774338725035,-500.0,0.00042191,120]
[408839769,1774338725044,-500.0,0.00042191,120]
[408839770,1774338725054,-500.0,0.00042191,120]
[408839771,1774338725063,-500.0,0.00042191,120]
[408839772,1774338725072,-500.0,0.00042191,120]
[408839773,1774338725081,-1046.27,0.00042191,120]
[408839774,1774338725090,-500.0,0.00042191,120]
[408839775,1774338725100,-500.0,0.00042191,120]
[408839776,1774338725109,-1613.72,0.00042191,120]
[408839777,1774338725119,-1897.96,0.00042191,120]
[408839778,1774338725128,-500.0,0.00042191,120]
[408839779,1774338725137,-770.58,0.00042191,120]
[408839780,1774338725146,-1960.33,0.00042191,120]
[408839781,1774338725155,-500.0,0.00042191,120]
[408839782,1774338725164,-3056.27,0.00042191,120]
[408839783,1774338725174,-500.0,0.00042191,120]
[408839784,1774338725183,-567.6765687,0.00042191,120]
[408839785,1774338725192,-1228.99,0.00042191,120]
[408839786,1774338725201,-500.0,0.00042191,120]
[408839787,1774338725211,-680.28,0.00042191,120]
[408839788,1774338725220,-500.0,0.00042191,60]
[408839789,1774338725229,-500.0,0.00042191,120]
[408839790,1774338725238,-769.44,0.00042191,120]
[408839791,1774338725248,-500.0,0.00042191,120]
[408839792,1774338725258,-500.0,0.00042191,120]
[408839793,1774338725267,-500.0,0.00042191,120]
[408839794,1774338725276,-500.0,0.00042191,120]
[408839795,1774338725286,-500.0,0.00042191,120]
[408839796,1774338725296,-500.0,0.00042191,120]
[408839797,1774338725308,-855.78,0.00042191,120]
[408839798,1774338725317,-500.0,0.00042191,120]
[408839799,1774338725328,-500.0,0.00042191,120]
[408839800,1774338725339,-1780.32,0.00042191,120]
[408839801,1774338725350,-1078.9,0.00042191,120]
[408839802,1774338725361,-1099.3,0.00042191,120]
[408839803,1774338725374,-699.82,0.00042191,120]
[408839804,1774338725384,-460.12278319,0.00042191,120]
[408839805,1774338725394,-500.0,0.00042191,120]
[408839806,1774338725404,-759.17,0.00042191,120]
[408839807,1774338725415,-500.0,0.00042191,120]
[408839808,1774338725425,-500.0,0.00042191,120]
[408839809,1774338725434,-500.0,0.00042191,120]
[408839810,1774338725445,-500.0,0.00042191,120]
[408839811,1774338725454,-931.09,0.00042191,120]
[408839812,1774338725463,-815.17,0.00042191,120]
[408839813,1774338725473,-500.0,0.00042191,120]
[408839814,1774338725483,-656.8,0.00042191,120]
[408839815,1774338725492,-500.0,0.00042191,120]
[408839816,1774338725503,-500.0,0.00042191,120]
[408839817,1774338725512,-500.0,0.00042191,120]
[408839818,1774338725522,-500.0,0.00042191,120]
[408839819,1774338725532,-500.0,0.00042191,120]
[408839820,1774338725542,-671.25,0.00042191,120]
[408839821,1774338725551,-500.0,0.00042191,120]
[408839822,1774338725560,-614.51,0.00042191,120]
[408839823,1774338725570,-1323.85,0.00042191,7]
[408839824,1774338725579,-500.0,0.00042191,14]
[408839825,1774338725589,-500.0,0.00042191,120]
[408839826,1774338725598,-984.57,0.00042191,120]
[408839827,1774338725608,-500.0,0.00042191,120]
[408839828,1774338725618,-500.0,0.00042191,120]
[408839829,1774338725627,-729.45,0.00042191,120]
[408839830,1774338725638,-500.0,0.00042191,120]
[408839831,1774338725647,-412.07494372,0.00042191,120]
[408839832,1774338725657,-500.0,0.00042191,120]
[408839833,1774338725667,-926.4,0.00042191,120]
[408839834,1774338725677,-1291.11,0.00042191,120]
[408839835,1774338725687,-560.4,0.00042191,120]
[408839836,1774338725696,-617.21,0.00042191,120]
[408839837,1774338725705,-500.0,0.00042191,120]
[408839838,1774338725715,-1726.06,0.00042191,120]
[408839839,1774338725724,-500.0,0.00042191,120]
[408839840,1774338725734,-561.98430058,0.00042191,120]
[408839841,1774338725743,-500.0,0.00042191,120]
[408839842,1774338725752,-500.0,0.00042191,120]
[408839843,1774338725762,-500.0,0.00042191,120]
[408839844,1774338725771,-500.0,0.00042191,120]
[408839845,1774338725781,-500.0,0.00042191,120]
[408839846,1774338725793,-1356.13,0.00042191,120]
[408839847,1774338725802,-581.44824598,0.00042191,120]
[408839848,1774338725815,-801.87,0.00042191,120]
[408839849,1774338725826,-500.0,0.00042191,120]
[408839850,1774338725837,-500.0,0.00042191,120]
[408839851,1774338725846,-500.0,0.00042191,120]
[408839852,1774338725856,-2922.62,0.00042191,60]
[408839853,1774338725866,-500.0,0.00042191,120]
[408839854,1774338725877,-821.12,0.00042191,120]
[408839855,1774338725886,-500.0,0.00042191,120]
[408839856,1774338725895,-665.38,0.00042191,120]
[408839857,1774338725906,-500.0,0.00042191,120]
[408839858,1774338725915,-500.0,0.00042191,120]
[408839859,1774338725925,-866.85,0.00042191,120]
[408839860,1774338725935,-500.0,0.00042191,120]
[408839861,1774338725948,-375.70112334,0.00042191,120]
[408839862,1774338725957,-500.0,0.00042191,120]
[408839863,1774338725967,-500.0,0.00042191,120]
[408839864,1774338725977,-500.0,0.00042191,120]
[408839865,1774338725987,-161.8114454,0.00042191,120]
[408839866,1774338725996,-2859.83,0.00042191,120]
[408839867,1774338726006,-500.0,0.00042191,120]
[408839868,1774338726015,-500.0,0.00042191,120]
[408839869,1774338726025,-644.49,0.00042191,120]
[408839870,1774338726035,-205.06449005,0.00042191,120]
[408839871,1774338726044,-4166.66,0.00042191,120]
[408839872,1774338726055,-719.59,0.00042191,120]
[408839873,1774338726064,-500.0,0.00042191,120]
[408839874,1774338726074,-679.57,0.00042191,120]
[408839875,1774338726083,-206.73765377,0.00042191,120]
[408839876,1774338726092,-500.0,0.00042191,120]
[408839877,1774338726102,-599.93,0.00042191,120]
[408839878,1774338726112,-500.0,0.00042191,120]
[408839879,1774338726121,-500.0,0.00042191,120]
[408839880,1774338726133,-500.0,0.00042191,120]
[408839881,1774338726143,-1432.07,0.00042191,120]
[408839882,1774338726152,-500.0,0.00042191,120]
[408839883,1774338726162,-500.0,0.00042191,120]
[408839884,1774338726171,-500.0,0.00042191,120]
[408839885,1774338726180,-500.0,0.00042191,120]
[408839886,1774338726190,-730.01,0.00042191,120]
[408839887,1774338726199,-500.0,0.00042191,120]
[408839888,1774338726208,-461.48877734,0.00042191,120]
[408839889,1774338726217,-645.25407189,0.00042191,120]
[408839890,1774338726227,-508.87,0.00042191,120]
[408839891,1774338726237,-883.47,0.00042191,120]
[408839892,1774338726246,-500.0,0.00042191,120]
[408839893,1774338726256,-579.79107627,0.00042191,120]
[408839894,1774338726265,-500.0,0.00042191,120]
[408839895,1774338726274,-299.53325951,0.00042191,120]
[408839896,1774338726284,-500.0,0.00042191,120]
[408839897,1774338726294,-500.0,0.00042191,120]
[408839898,1774338726407,-500.0,0.00042191,120]
[408839899,1774338726419,-500.0,0.00042191,120]
[408839900,1774338726429,-759.73,0.00042191,120]
[408839901,1774338726438,-1171.93,0.00042191,120]
[408839902,1774338726448,-892.78,0.00042191,120]
[408839903,1774338726458,-749.74,0.00042191,120]
[408839904,1774338726467,-978.13,0.00042191,120]
[408839905,1774338726476,-500.0,0.00042191,120]
[408839906,1774338726485,-500.0,0.00042191,120]
[408839907,1774338726495,-674.49,0.00042191,120]
[408839908,1774338726504,-1973.42,0.00042191,120]
[408839909,1774338726513,-1355.12,0.00042191,120]
[408839910,1774338726523,-500.0,0.00042191,120]
[408839911,1774338726532,-500.0,0.00042191,120]
[408839912,1774338726541,-1044.01,0.00042191,120]
[408839913,1774338726550,-786.73,0.00042191,120]
[408839914,1774338726560,-500.0,0.00042191,120]
[408839915,1774338726570,-500.0,0.00042191,120]
[408839916,1774338726579,-500.0,0.00042191,120]
[408839917,1774338726589,-500.0,0.00042191,120]
[408839918,1774338726598,-1476.03,0.00042191,120]
[408839919,1774338726607,-647.98,0.00042191,120]
[408839920,1774338726617,-500.0,0.00042191,120]
[408839921,1774338726626,-947.33,0.00042191,120]
[408839922,1774338726636,-500.0,0.00042191,120]
[408839923,1774338726646,-590.04,0.00042191,120]
[408839924,1774338726656,-500.0,0.00042191,120]
[408839925,1774338726667,-924.76,0.00042191,120]
[408839926,1774338726676,-500.0,0.00042191,120]
[408839927,1774338726686,-585.0802188,0.00042191,120]
[408839928,1774338726695,-1633.92,0.00042191,120]
[408839929,1774338726705,-1295.04,0.00042191,120]
[408839930,1774338726714,-500.0,0.00042191,120]
[408839931,1774338726723,-500.0,0.00042191,120]
[408839932,1774338726732,-1441.35,0.00042191,60]
[408839933,1774338726742,-588.11,0.00042191,120]
[408839934,1774338726751,-1951.73,0.00042191,120]
[408839935,1774338726761,-500.0,0.00042191,120]
[408839936,1774338726770,-500.0,0.00042191,120]
[408839937,1774338726779,-500.0,0.00042191,120]
[408839938,1774338726789,-2782.79,0.00042191,120]
[408839939,1774338726798,-605.44,0.00042191,120]
[408839940,1774338726808,-500.0,0.00042191,120]
[408839941,1774338726817,-894.69,0.00042191,120]
[408839942,1774338726826,-500.0,0.00042191,120]
[408839943,1774338726835,-500.0,0.00042191,120]
[408839944,1774338726844,-525.27,0.00042191,120]
[408839945,1774338726854,-1730.58,0.00042191,120]
[408839946,1774338726863,-517.76,0.00042191,120]
[408839947,1774338726873,-500.0,0.00042191,120]
[408839948,1774338726883,-500.0,0.00042191,120]
[408839949,1774338726893,-500.0,0.00042191,120]
[408839950,1774338726903,-500.0,0.00042191,120]
[408839951,1774338726912,-500.0,0.00042191,120]
[408839952,1774338726922,-1269.84,0.00042191,120]
[408839953,1774338726931,-1536.15,0.00042191,120]
[408839954,1774338726940,-500.0,0.00042191,120]
[408839955,1774338726949,-1493.36,0.00042191,120]
[408839956,1774338726958,-500.0,0.00042191,120]
[408839957,1774338726968,-632.12,0.00042191,120]
[408839958,1774338726977,-600.11,0.00042191,120]
[408839959,1774338726985,-1551.97,0.00042191,120]
[408839960,1774338726994,-500.0,0.00042191,120]
[408839961,1774338727004,-724.43,0.00042191,120]
[408839962,1774338727013,-2431.7,0.00042191,120]
[408839963,1774338727022,-500.0,0.00042191,120]
[408839964,1774338727032,-1186.56,0.00042191,120]
[408839965,1774338727041,-500.0,0.00042191,120]
[408839966,1774338727050,-1747.14,0.00042191,120]
[408839967,1774338727060,-1632.69,0.00042191,120]
[408839968,1774338727069,-500.0,0.00042191,120]
[408839969,1774338727078,-500.0,0.00042191,120]
[408839970,1774338727087,-500.0,0.00042191,120]
[408839971,1774338727096,-500.0,0.00042191,120]
[408839972,1774338727105,-517.15,0.00042191,120]
[408839973,1774338727115,-1598.01,0.00042191,120]
[408839974,1774338727124,-500.0,0.00042191,120]
[408839975,1774338727135,-500.0,0.00042191,120]
[408839976,1774338727144,-500.0,0.00042191,120]
[408839977,1774338727154,-1075.02,0.00042191,120]
[408839978,1774338727163,-1616.03,0.00042191,120]
[408839979,1774338727172,-1428.85,0.00042191,120]
[408839980,1774338727181,-500.0,0.00042191,120]
[408839981,1774338727191,-500.0,0.00042191,120]
[408839982,1774338727201,-866.03,0.00042191,120]
[408839983,1774338727210,-665.63,0.00042191,120]
[408839984,1774338727219,-1926.05,0.00042191,120]
[408839985,1774338727229,-2687.41,0.00042191,120]
[408839986,1774338727238,-728.07,0.00042191,120]
[408839987,1774338727247,-604.38,0.00042191,120]
[408839988,1774338727256,-638.16,0.00042191,120]
[408839989,1774338727265,-500.0,0.00042191,120]
[408839990,1774338727275,-500.0,0.00042191,120]
[408839991,1774338727284,-1493.48,0.00042191,30]
[408839992,1774338727293,-801.43,0.00042191,120]